{"text_format":"1","workbook":"xlsx","n_sheets":4,"sheets":["data","text","New CP23","Re-enrolled CP23"],"not_rendered":{"charts":0,"images":12,"macros":1,"external_links":1,"defined_names":5,"comments":0,"pivot_tables":0},"unopened":[],"bounds":{"document_bytes":16777216,"sheet_cells":100000,"rows_first":2000,"rows_last":500,"rows_between":2000,"halvings":0,"cell_chars":16384,"cell_head_chars":4096},"cells_cut":0,"cells_raw":0,"read":"whole","date_system":"1900"}

{"sheet":"data","index":0,"n_rows":179,"n_cols":9,"rows_kept":179,"cut":false,"hidden":true,"merged":[[176,1,176,6],[177,1,177,6],[178,1,178,6],[129,8,129,13],[170,1,170,6],[172,1,172,6],[173,1,173,6],[174,1,174,6],[175,1,175,6],[165,1,165,6],[166,1,166,6],[167,1,167,6],[168,1,168,6],[169,1,169,6],[159,1,159,6],[161,1,161,6],[162,1,162,6],[163,1,163,6],[164,1,164,6],[154,1,154,6],[155,1,155,6],[156,1,156,6],[157,1,157,6],[158,1,158,6],[148,1,148,6],[149,1,149,6],[151,1,151,6],[152,1,152,6],[153,1,153,6],[143,1,143,6],[144,1,144,6],[145,1,145,6],[146,1,146,6],[147,1,147,6],[136,1,136,6],[137,1,137,6],[138,1,138,6],[139,1,139,6],[142,1,142,6],[130,1,130,6],[131,1,131,6],[132,1,132,6],[133,1,133,6],[134,1,134,6],[129,1,129,6],[56,5,56,11],[58,5,58,11],[59,5,59,11],[57,5,57,8],[121,4,121,6],[123,4,123,6],[62,3,62,10],[64,2,64,8],[65,2,65,8],[66,2,66,8],[69,3,69,9],[70,3,70,9],[71,3,71,9]]}
["Participant",null,"Project or Contract"]
["Location",null,"County"]
["Farm Number",null,"Tract Number"]
[null,null,null,null,1]
[null,"Select ",null,null,2]
["x","CP 1",null,null,3]
[null,"CP 2",null,null,4]
[null,"CP 4D",null,null,5]
[null,"CP 8A",null,null,6]
[null,"CP 9",null,null,7]
[null,"CP 15A","new",null,8]
[null,"CP 21","re-enrolled",null,9]
[null,"CP 22",null,null,10]
[null,"CP 23"]
[null,"CP 23A"]
[null,"CP 29"]
[null,"CP 30"]
[null,"CP 33"]
[null,"CP 42"]
[]
[null,"Over-seeding Planned"]
["Mowing Pattern (Check 1) "]
[null,"Entire Acreage"]
[null,"Alternating row"]
[null,"Alternating block",null,null,"10 yrs to 10 yrs, 11 months           "]
[null,"Tree / Shrub Area  ",null,null,"11 yrs to 11 yrs, 11 months           "]
[null,"in year 4 or 5, but before end of year 6           ",null,null,"12 yrs to 12 yrs, 11 months           "]
[null,"in year 4 or 5, but before end of year 6",null,null,"13 yrs to 13 yrs, 11 months           "]
[null,"in year 4 or 5, but before end of year 6",null,null,"14 yrs to 14 yrs, 11 months           "]
[null,"in year 4 or 5, but before end of year 9           ",null,null,"15 years                                             "]
[null,"in year 4 or 5, but before end of year 9           ",null,null,"Re-enrollment contract"]
[null,"in year 4 or 5, but before end of year 9           "]
[{"$f":"data!#REF!","v":{"$error":"#REF!"}},"Not Applicable"]
[null,"before end of year 8"]
[null,"before end of year 9"]
[null,"before end of year 10"]
[null,"before end of year 11","Select a Purpose"]
[null,"before end of year 12","Restore shallow water areas (6\" to 18\" deep, on average) for wildlife habitat."]
[null,"before end of year 13","Create shallow water areas (6\" to 18\" deep, on average) for wildlife habitat."]
[null,"at re-enrollment"]
[]
[null,{"$f":"indirect","v":{"$error":"#NAME?"}}]
[]
[]
[]
[]
[]
[]
["Select County"]
["Adams"]
["Allegheny"]
["Armstrong"]
["Beaver"]
["Bedford"]
["Berks"]
["Blair",null,"Select site preparation method",null,"  "]
["Bradford",null,"Apply appropriate herbicide(s) to CP23 buffer acres prior to seeding, to remove existing vegetation.  ",null,null,"Use non-selective herbicides (like glyphosate) to remove all existing vegetation.  Extremely vigorous plants may require multiple treatments: apply herbicide(s) in early fall of the year prior to grass planting, followed by another spring application of herbicides at least two weeks prior to planting.  Always follow herbicide label instructions for rate, timing, and methods of herbicide application(s).  Take special care to avoid herbicide carryover that may negatively affect the CRP or CREP planting."]
["Bucks",null,"Cultivate the CP23 buffer acres, to remove existing vegetation and prepare the seedbed. ",null,null,"Cultivation offers an alternative to herbicides, but requires careful consideration, as it is often less effective than herbicides for killing unwanted vegetation, may actually stir up weed seeds in the soil, and may increase the risk of runoff or erosion from sloped fields.  NRCS strongly recommends cover crops or nurse crops for erosion control and weed suppression on cultivated sites.  Plant cover crops of wheat, barley, or oats on the CP23 buffer acres in the early fall of the year prior to grass planting.  Plant nurse crops of wheat, barley, or oats (oats are preferred, because they offer less competition to the new grasses) with the grass seed to minimize erosion and suppress weeds while minimizing competition.  Seed nurse crops at 1 bushel per acre."]
["Butler",null,"No site preparation is needed.",null,null,"This option only applies to fields with little or no weed pressure or competing vegetation AND little or no seed bed.  Be aware that weed control is easiest and most effective prior to planting, rather than after.  No cost-sharing is available from USDA for this activity. "]
["Cambria"]
["Cameron"]
["Carbon"]
["Centre"]
["Chester"]
["Clarion"]
["Clearfield"]
["Clinton"]
["Columbia"]
["Crawford"]
["Cumberland",null,null,"Conduct Prescribed Mowing on CP23 buffer acres, dispersing mowing residues evenly across mowed areas.  Avoid wind rows, clumping, or other accumulated residues that may smother the desired cover or prevent seed-to-soil contact. "]
["Dauphin",null,null,"Conduct Prescribed Mowing on CP23 buffer acres, removing mowing residues from the field by raking and baling, then destroying or donating residues.  Coordinate with FSA staff, who must verify the disposal of baled residues.  (Fee charged.) "]
["Delaware",null,null,"No management action needed.  No cost-sharing is associated with this option.  "]
["Elk"]
["Erie",null,"Select a MCM"]
["Fayette",null,"Interplanting"]
["Forest",null,"Inter-seeding / Overseeding"]
["Franklin",null,"Prescribed Burning"]
["Fulton",null,"Prescribed Mowing"]
["Greene"]
["Huntingdon"]
["Indiana"]
["Jefferson"]
["Juniata"]
["Lackawanna"]
["Lancaster"]
["Lawrence"]
["Lebanon"]
["Lehigh"]
["Luzerne"]
["Lycoming"]
["McKean"]
["Mercer"]
["Mifflin"]
["Monroe"]
["Montgomery"]
["Montour"]
["Northampton"]
["Northumberland"]
["Perry"]
["Philadelphia"]
["Pike"]
["Potter"]
["Schuylkill"]
["Snyder"]
["Somerset"]
["Sullivan"]
["Susquehanna"]
["Tioga"]
["Union"]
["Venango"]
["Warren"]
["Washington"]
["Wayne"]
["Westmoreland"]
["Wyoming"]
["York"]
[]
[]
[]
[null,null,null,"   "]
[null,null,null,"Select a seeding method","SeedingMethodLookup"]
[null,null,1,"No-Till drill /specialized No-Till drill ","After completion of site preparations, plant the selected seed mixture with a no-till drill, taking care to place seed at the proper depth in the soil.  Seeding pattern should be perpendicular to the direction of surface water flow whenever possible.  If planting native grasses, note that only switchgrass can be planted with a conventional no-till drill; all other WSGs require a no-till drill equipped with “fluffy seed” boxes or seed agitators of some kind.  Such drills may be available for free to USDA participants, from local PA Game Commission offices or Pheasants Forever chapters.  "]
["Native grasses typically need three years after seeding to fully establish.  During those three years, WSG establishment improves greatly with reduction of competing vegetation and/or weed pressure.  As a result, CRP and CREP rules allow mowing and spraying of WSG CP9 buffer acres, at any time, for three years after seeding.  Do not mow CP9 acres lower than 8 inches, and follow all label instructions when applying appropriate herbicides.  Contact NRCS prior to mowing or spraying, for technical assistance and to document the establishment actions taken.",null,null,"Conventional drill.  ","After completion of site preparations, plant the selected seed mixture with a conventional drill, taking care to place seed at the proper depth in the soil.  Cultipack/firm seed bed after seeding.  Seed and cultipack perpendicular to the direction of surface water flow whenever possible.  "]
["Introduced cool-season grasses typically need one year after seeding to fully establish.  During that year, CSG establishment improves greatly with reduction of competing vegetation and/or weed pressure.  As a result, CRP and CREP rules allow mowing and spraying of CSG CP9 buffer acres, at any time, for one year after seeding.  Do not mow CP9 acres lower than 6 inches, and follow all label instructions when applying appropriate herbicides.  Contact NRCS prior to mowing or spraying, for technical assistance and to document the establishment actions taken.",null,3,"Broadcasting  ","After completion of site preparations, plant the selected seed mixture by broadcasting seed.  Increase seeding rates by 50% more seed per acre when broadcasting, to compensate for lower germination rates resulting from less seed-to-soil contact.  For example, if a seed mixture’s no-till seeding rate is 6 lbs/ac, then the same seed mixture’s broadcast seeding rate would be 9 lbs/ac, to achieve similar germination rates.  Calibrate the broadcaster prior to spreading seed; use a free-flowing “carrier” material with the seed if needed.  For best results, broadcast half the total seed in one pattern (i.e. East – West), then broadcast the remaining seed perpendicular to the previous pattern (i.e. North – South).  Cultipack/firm seed bed after broadcasting; cultipacking pattern should be perpendicular to the direction of surface water flow whenever possible.     "]
[]
[]
["Choose a grass type",null,"    "]
["Native grass/wildflower mix"]
["Introduced cool-season/legume grass mix"]
[null,null,null,null,null,null,null,null,"All native warm-season grasses  (choose one mix)                                                                                                                                                                                                                                                                                                                                                   S    Switchgrass (3 lbs) and deertongue (3 lbs)                                                                           WD, MWD, SPD, PD                                                                                                                                                                                                                        B    Big bluestem (3 lbs), Indiangrass (1 lb), and Little Bluestem (2)                                      EWD, WD, MWD                                                                                                                                                                              B    Big bluestem (3 lbs), Indiangrass (2 lbs), and switchgrass (1)                                         EWD, WD, MWD, SPD                                                                                                                                                                   B    Big bluestem (3 lbs), Indiangrass (1 lb), Little bluestem (2) and switchgrass (1)         EWD, WD, MWD, SPD                                                                                                                                                                OR                                                                                                                                                                                                                                                                                                                                                                         Mixed native warm-season and cool-season grasses (choose one mix)                                                                                                                                                                                                                                                                           B   Big bluestem (2 lbs), Indiangrass (1 lb), Little bluestem (1 lb), switchgrass (1 lb),                                                                                                                                                                            sideoats                 sideoats grama (1 lb), and Canada wildrye (2 lbs)                                  EWD, WD, MWD                                                                                           R   Riverbank wildrye (5 lbs), Virginia wildrye (5 lbs), and switchgrass (1 lb)                    WD, MWD, SPD, PD                                                                                 C   Canada wildrye (4 lbs) and switchgrass (3 lbs)                                                                   EWD, WD, MWD, SPD                                                                               OR                                                                                                                                                                                                                                                                                                                                                                          Native cool-season grasses  (choose one mix)                                                                                                                                                                                                                                                                                                              C   Canada wildrye (3 lbs), Virginia wildrye (3 lbs), Riverbank wildrye (2 lbs),                                                                                                                                                          and                          and Bottlebrush (2 lbs)                                                                                  WD, MWD, SPD                                                                                                          C   Canada wildrye (4 lbs), Virginia wildrye (4 lbs), and Riverbank wildrye (2 lbs)           EWD, WD, MWD                                                                                                    R   Riverbank wildrye (4 lbs), Virginia wildrye (4 lbs), and Canada wildrye (2 lbs)           WD, MWD, SPD "]
[null,"Mixed native warm-season and cool-season grasses (choose one mix)"]
[null,"          Big bluestem (2 lbs), Indiangrass (1 lb), Little bluestem (1 lb), switchgrass (1 lb), sideoats grama (1 lb), and Canada wildrye (2 lbs)    EWD, WD, MWD   "]
[null,"          Big bluestem (3 lbs), eastern gamagrass (2 lbs), switchgrass (1 lb), deertongue (1 lb), and Virginia wildrye (3 lbs)    MWD, SPD "]
[null,"          Riverbank wildrye (5 lbs), Virginia wildrye (5 lbs), and switchgrass (1 lb)    WD, MWD, SPD, PD "]
[null,"          Canada wildrye (4 lbs) and switchgrass (3 lbs)    EWD, WD, MWD, SPD"]
[null,null,null,"OR"]
[null,"Native cool-season grasses  (choose one mix) "]
[null,"          Canada wildrye (3 lbs), Virginia wildrye (3 lbs), Riverbank wildrye (2 lbs), and Bottlebrush (2 lbs)    WD, MWD, SPD   "]
[null,"          Canada wildrye (4 lbs), Virginia wildrye (4 lbs), and Riverbank wildrye (2 lbs)    EWD, WD, MWD   "]
[null,"         Riverbank wildrye (4 lbs), Virginia wildrye (4 lbs), and Canada wildrye (2 lbs)    WD, MWD, SPD  "]
[]
[]
[null,"One grass / One legume  "]
[null,"                Timothy  (WD, MWD, SPD, PD)            or"]
[null,"                Orchardgrass  (EWD, WD, MWD)       or"]
[null,"                Kentucky bluegrass  (WD, MWD)      or"]
[null,"                Smooth bromegrass  (WD, MWD, SPD)"]
[null,"                               AND"]
[null,"                Birdsfoot trefoil  (WD, MWD)           or"]
[null,"                Ladino clover  (MWD)"]
[]
[null,"One grass / Three legumes  "]
[null,"                Timothy  (WD, MWD, SPD, PD)            or"]
[null,"                Orchardgrass  (EWD, WD, MWD)       or"]
[null,"                Kentucky bluegrass  (WD, MWD)      or"]
[null,"                Smooth bromegrass  (WD, MWD, SPD)"]
[null,"                               AND"]
[null,"                Ladino clover  (MWD)                       and"]
[null,"                Red clover  (WD, MWD)                    and"]
[null,"                Alsike clover  (SPD, PD)"]
[]
[null,"Two grasses / Two legumes "]
[null,"                Timothy  (WD, MWD, SPD, PD)         and"]
[null,"                Orchardgrass  (EWD, WD, MWD)    and"]
[null,"                Red clover  (WD, MWD)                   and"]
[null,"                Alsike clover  (SPD, PD)"]
[null,"                               OR"]
[null,"                Orchardgrass  (EWD, WD, MWD)    and"]
[null,"                Smooth bromegrass (WD, MWD, SPD) and"]
[null,"                Red clover  (WD, MWD)                   and"]
[null,"                Ladino clover  (MWD)"]
[]
[null,"Three grasses / Three legumes "]
[null,"                Timothy  (WD, MWD, SPD, PD)         and"]
[null,"                Orchardgrass  (EWD, WD, MWD)    and"]
[null,"                Smooth bromegrass (WD, MWD, SPD) and"]
[null,"                Ladino clover  (MWD)                     and"]
[null,"                Red clover  (WD, MWD)                  and"]
[null,"                Alsike clover  (SPD, PD)"]

{"sheet":"text","index":1,"n_rows":14,"n_cols":17,"rows_kept":14,"cut":false,"hidden":true,"merged":[[0,0,0,13],[11,16,11,27],[12,16,12,27],[13,16,13,27]]}
["CP"]
[1,2,"4D","8A",9,"15A",21,22,23,"23A",29,30,33,42,"comment"]
[null,null,null,"x",null,"x","x",null,null,null,null,null,null,null,"May receive a one-time Prescribed Mowing of their entire acreage.  "]
[]
[]
[]
[]
[]
[]
[]
[]
[null,null,null,null,null,null,null,null,null,null,null,null,null,null,null,null,"No-Till drill /specialized No-Till drill.  After completion of site preparations, plant the selected seed mixture with a no-till drill, taking care to place seed at the proper depth in the soil.  Seeding pattern should be perpendicular to the direction of surface water flow whenever possible.  Note that only switchgrass can be planted with a conventional no-till drill; all other WSGs require a no-till drill equipped with “fluffy seed” boxes or seed agitators of some kind.  Such drills may be available for free to USDA participants, from local PA Game Commission offices or Pheasants Forever chapters.  "]
[null,null,null,null,null,null,null,null,null,null,null,null,null,null,null,null,"Conventional drill.  After completion of site preparations, plant the selected seed mixture with a conventional drill, taking care to place seed at the proper depth in the soil.  Note that only switchgrass can be planted with a conventional no-till drill; all other WSGs require a no-till drill equipped with “fluffy seed” boxes or seed agitators of some kind.  Cultipack/firm seed bed after seeding.  Seed and cultipack perpendicular to the direction of surface water flow whenever possible.  "]
[null,null,null,null,null,null,null,null,null,null,null,null,null,null,null,null,"Broadcasting.  After completion of site preparations, plant the selected seed mixture by broadcasting seed.  Increase seeding rates by 50% more seed per acre when broadcasting, to compensate for lower germination rates resulting from less seed-to-soil contact.  For example, if a seed mixture’s no-till seeding rate is 6 lbs/ac, then the same seed mixture’s broadcast seeding rate would be 9 lbs/ac, to achieve similar germination rates.  Calibrate the broadcaster prior to spreading seed; use a free-flowing “carrier” material with the seed if needed.  For best results, broadcast half the total seed in one pattern (i.e. East – West), then broadcast the remaining seed perpendicular to the previous pattern (i.e. North – South).  Cultipack/firm seed bed after broadcasting; cultipacking pattern should be perpendicular to the direction of surface water flow whenever possible.     "]

{"sheet":"New CP23","index":2,"n_rows":160,"n_cols":15,"rows_kept":160,"cut":false,"hidden":false,"merged":[[61,2,61,8],[61,12,61,14],[62,12,62,14],[63,2,63,8],[63,12,63,14],[36,12,36,14],[57,12,57,14],[55,2,55,8],[55,12,55,14],[57,2,57,11],[58,2,58,8],[58,12,58,14],[59,2,59,8],[59,12,59,14],[60,2,60,8],[60,12,60,14],[50,2,50,8],[50,12,50,14],[51,2,51,7],[51,12,51,14],[52,2,52,8],[52,12,52,14],[53,2,53,8],[41,2,41,7],[41,12,41,14],[42,2,42,8],[42,12,42,14],[43,2,43,8],[43,12,43,14],[53,12,53,14],[54,2,54,8],[44,2,44,8],[44,12,44,14],[46,2,46,11],[47,2,47,8],[47,12,47,14],[48,2,48,8],[48,12,48,14],[49,2,49,8],[49,12,49,14],[34,12,34,14],[36,2,36,11],[37,2,37,8],[37,12,37,14],[38,2,38,8],[38,12,38,14],[39,2,39,8],[39,12,39,14],[40,2,40,8],[40,12,40,14],[13,16,13,25],[66,12,66,14],[93,7,93,13],[133,2,133,10],[134,2,134,14],[130,4,130,5],[130,6,130,7],[130,12,130,14],[131,4,131,5],[131,6,131,7],[131,12,131,14],[128,4,128,5],[128,6,128,7],[128,12,128,14],[129,4,129,5],[129,6,129,7],[129,12,129,14],[126,12,126,14],[127,4,127,5],[127,6,127,7],[127,12,127,14],[124,4,124,5],[124,6,124,7],[124,12,124,14],[125,4,125,5],[125,6,125,7],[125,12,125,14],[70,12,70,14],[71,12,71,14],[72,2,72,8],[14,2,14,14],[15,2,15,14],[19,2,19,13],[75,2,75,11],[73,2,73,8],[21,3,21,14],[96,3,96,14],[103,2,103,6],[103,7,103,10],[103,11,103,14],[27,2,27,8],[28,12,28,14],[29,12,29,14],[30,12,30,14],[31,12,31,14],[32,2,32,8],[32,12,32,14],[33,2,33,8],[4,11,4,13],[2,11,2,13],[82,12,82,14],[83,12,83,14],[84,12,84,14],[13,2,13,14],[17,2,17,14],[7,2,7,14],[10,2,10,14],[2,4,2,8],[3,4,3,8],[4,4,4,8],[70,2,70,8],[71,2,71,8],[69,2,69,8],[20,2,20,14],[2,2,2,3],[3,2,3,3],[4,2,4,3],[72,12,72,14],[73,12,73,14],[62,2,62,8],[33,12,33,14],[34,2,34,8],[157,2,157,14],[156,2,156,10],[114,2,114,14],[99,2,99,14],[100,2,100,14],[101,2,101,14],[102,2,102,14],[143,4,144,7],[142,2,143,2],[143,13,143,14],[112,2,112,14],[143,3,144,3],[143,10,144,10],[119,2,120,2],[120,3,121,3],[120,4,121,5],[152,4,152,8],[153,4,153,8],[154,4,154,8],[147,4,147,8],[148,4,148,8],[149,4,149,8],[150,4,150,8],[151,4,151,8],[91,2,91,14],[76,2,76,8],[77,2,77,8],[78,2,78,8],[79,2,79,8],[84,2,84,8],[76,12,76,14],[77,12,77,14],[78,12,78,14],[81,2,81,11],[79,12,79,14],[145,4,145,8],[146,4,146,8],[143,11,144,11],[143,12,144,12],[143,9,144,9],[86,2,86,14],[94,2,94,14],[95,2,95,14],[82,2,82,8],[83,2,83,8],[90,2,90,6],[122,4,122,5],[122,6,122,7],[122,12,122,14],[123,4,123,5],[123,6,123,7],[123,12,123,14],[120,6,121,7],[120,8,121,8],[120,9,121,9],[120,10,120,11],[120,12,120,14],[126,4,126,5],[126,6,126,7],[104,2,104,6],[104,7,104,10],[104,11,104,14],[105,2,105,6],[105,7,105,10],[105,11,105,14],[106,2,106,6],[106,7,106,10],[106,11,106,14],[107,2,107,6],[107,7,107,10],[107,11,107,14],[108,2,108,6],[108,7,108,10],[108,11,108,14],[109,2,109,6],[109,7,109,10],[109,11,109,14]]}
[]
[]
[null,null,"Participant:",null,null,null,null,null,null,null,"FSA Contract:  "]
[null,null,"Location:",null,null,null,null,null,null,null,"County:  "]
[null,null,"Farm Number:",null,null,null,null,null,null,null,"Tract Number:  "]
[]
[null,null,"Definition:"]
[null,null,"Restoration of a wetland to a condition which meets all three USDA wetland criteria.  The restored wetland is then managed as wildlife habitat for the length of the CRP/CREP contract."]
[]
[null,null,"Purpose:  "]
[null,null,"This practice restores and maintains wetlands (not ponds) on sites where previous wetlands were lost, then manages those restored wetlands for long-term wildlife habitat.  "]
[]
[null,null,"Description:"]
[null,null,"Restored wetlands provide crucial habitats for a variety of wildlife.  Resident species, like amphibians and mammals, often rely on the consistent food and cover they provide.  Migratory species, like waterfowl and insects, often use them as corridors or \"stop-over\" sites for migration.  These areas should not be confused with deep-water ponds, because they offer very different benefits: compared to deep-water ponds, wetlands allow the growth of perennial vegetation--even in standing water (see photos above)--which in turn provides excellent food and cover for amphibians, insects, birds, and mammals throughout the year.  As a result, wetlands are among the most productive wildlife habitats available, especially when surrounded by perennial vegetation acting as \"buffers\" or filters around the water bodies.   "]
[]
[]
[null,"Yes","Practice Guidance for New CP23 Acres:  "]
[null,"Yes","Restore wetlands in the fields indicated in Table 1 and on the Conservation Plan Map, by following the engineering design packet provided by NRCS.  Establish buffer areas of perennial, permanent grasses in the non-water portions of those same fields, by following the Site Preparation and the Planting guidance below.  Weed control (mowing or herbicide treatment) during the establishment period after seeding may help the successful establishment of the vegetation in the buffer(s) surrounding the restored wetland establish successfully.  After successful establishment of the buffer vegetation, follow the Operation and Maintenance requirements below.  CRP/CREP contracts also require periodic management of CP23 acres, which should follow the Mid-Contract Management guidance below."]
[null,"Yes","Site Preparation Method (buffer area)"]
[null,"Yes","Select site preparation method"]
[null,"Yes",{"$f":"IF(C20=data!C57,data!F57, IF(C20=data!C58,data!F58, IF(C20=data!C59,data!F59)))","v":false}]
[null,null,"SITE-                   SPECIFIC NOTES","Enter text here"]
[]
[]
[null,null,"Planting Guidance for New CP23 buffer areas      ",null,null,null,null,null,null,null,null,null,null,"Gray areas for USDA"]
[null,null,null,null,null,null,null,null,null,null,null,"lbs of ",null,"use only"]
[null,null,"Cool-season grass mix and drainage class*",null,null,null,null,null,null,"lbs / ac","Acres","seed","Seed tag verified?    "]
[null,null,"One grass / One legume",null,null,null,null,null,null,null,null,"needed","Yes","No"]
[null,null,"                Timothy  (WD, MWD, SPD, PD)            or",null,null,null,null,null,null,4,null,{"$f":"ROUNDUP((J29*K29),0)","v":0}]
[null,null,"                Orchardgrass  (EWD, WD, MWD)       or",null,null,null,null,null,null,5,null,{"$f":"ROUNDUP((J30*K30),0)","v":0}]
[null,null,"                Kentucky bluegrass  (WD, MWD)      or",null,null,null,null,null,null,7,null,0]
[null,null,"                Smooth bromegrass  (WD, MWD, SPD)",null,null,null,null,null,null,7,null,0]
[null,null,"                               AND"]
[null,null,"                Birdsfoot trefoil  (WD, MWD)           or",null,null,null,null,null,null,6,null,0]
[null,null,"                Ladino clover  (MWD)",null,null,null,null,null,null,2,null,0]
[]
[null,null,"One grass / Three legumes"]
[null,null,"                Timothy  (WD, MWD, SPD, PD)            or",null,null,null,null,null,null,4,null,{"$f":"ROUNDUP((J38*K38),0)","v":0}]
[null,null,"                Orchardgrass  (EWD, WD, MWD)       or",null,null,null,null,null,null,5,null,{"$f":"ROUNDUP((J39*K39),0)","v":0}]
[null,null,"                Kentucky bluegrass  (WD, MWD)      or",null,null,null,null,null,null,7,null,0]
[null,null,"                Smooth bromegrass  (WD, MWD, SPD)",null,null,null,null,null,null,7,null,0]
[null,null,"                               AND"]
[null,null,"                Ladino clover  (MWD)                       and",null,null,null,null,null,null,1,null,{"$f":"ROUNDUP((J43*K43),0)","v":0}]
[null,null,"                Red clover  (WD, MWD)                    and",null,null,null,null,null,null,2,{"$f":"K43","v":0},{"$f":"ROUNDUP((J44*K44),0)","v":0}]
[null,null,"                Alsike clover  (SPD, PD)",null,null,null,null,null,null,1,{"$f":"K43","v":0},0]
[]
[null,null,"Two grasses / Two legumes"]
[null,null,"                Timothy  (WD, MWD, SPD, PD)         and",null,null,null,null,null,null,4,null,{"$f":"ROUNDUP((J48*K48),0)","v":0}]
[null,null,"                Orchardgrass  (EWD, WD, MWD)    and",null,null,null,null,null,null,5,{"$f":"K48","v":0},{"$f":"ROUNDUP((J49*K49),0)","v":0}]
[null,null,"                Red clover  (WD, MWD)                   and",null,null,null,null,null,null,2,{"$f":"K48","v":0},0]
[null,null,"                Alsike clover  (SPD, PD)",null,null,null,null,null,null,2,{"$f":"K48","v":0},0]
[null,null,"                                OR"]
[null,null,"                Orchardgrass  (EWD, WD, MWD)            and",null,null,null,null,null,null,5,null,{"$f":"ROUNDUP((J53*K53),0)","v":0}]
[null,null,"                Smooth bromegrass (WD, MWD, SPD)  and",null,null,null,null,null,null,6,{"$f":"K53","v":0},{"$f":"ROUNDUP((J54*K54),0)","v":0}]
[null,null,"                Red clover  (WD, MWD)                          and",null,null,null,null,null,null,2,{"$f":"K53","v":0},0]
[null,null,"                Ladino clover  (MWD)",null,null,null,null,null,null,2,{"$f":"K53","v":0},0]
[]
[null,null,"Three grasses / Three legumes "]
[null,null,"                Timothy  (WD, MWD, SPD, PD)                  and",null,null,null,null,null,null,3,null,{"$f":"ROUNDUP((J59*K59),0)","v":0}]
[null,null,"                Orchardgrass  (EWD, WD, MWD)             and",null,null,null,null,null,null,3,{"$f":"K59","v":0},{"$f":"ROUNDUP((J60*K60),0)","v":0}]
[null,null,"                Smooth bromegrass (WD, MWD, SPD)   and",null,null,null,null,null,null,4,{"$f":"+K59","v":0},0]
[null,null,"                Ladino clover  (MWD)                               and",null,null,null,null,null,null,1,{"$f":"K59","v":0},0]
[null,null,"                Red clover  (WD, MWD)                            and",null,null,null,null,null,null,2,{"$f":"K59","v":0},0]
[null,null,"                Alsike clover  (SPD, PD)",null,null,null,null,null,null,1,{"$f":"K59","v":0},0]
[]
[]
[null,null,"Planting Guidance for New CP23 buffer areas      ",null,null,null,null,null,null,null,null,null,"Gray areas for USDA"]
[null,"Yes",null,null,null,null,null,null,null,null,null,"lbs of ",null,"use only"]
[null,"Yes","Warm-season grass mix and drainage class*",null,null,null,null,null,null,"lbs / ac","Acres","seed",null,"Seed tag verified?"]
[null,"Yes","All native warm-season grasses  (choose one mix)",null,null,null,null,null,null,null,null,"needed","Yes","No"]
[null,"Yes","          Switchgrass (3 lbs) and deertongue (3 lbs)                                     WD, MWD, SPD, PD ",null,null,null,null,null,null,6,null,{"$f":"ROUNDUP((J71*K71),0)","v":0}]
[null,"Yes","          Big bluestem (3 lbs), Indiangrass (1 lb), and Little Bluestem (2)    EWD, WD, MWD ",null,null,null,null,null,null,6,null,{"$f":"ROUNDUP((J72*K72),0)","v":0}]
[null,"Yes","          Big bluestem (3 lbs), Indiangrass (2 lbs), and switchgrass (1)    EWD, WD, MWD, SPD ",null,null,null,null,null,null,6,null,0]
[null,"Yes","          Big bluestem (3 lbs), Indiangrass (1 lb), Little bluestem (2) and switchgrass (1)      EWD, WD, MWD, SPD   ",null,null,null,null,null,null,7,null,0]
[null,"Yes",null,null,"OR"]
[null,"Yes","Mixed native warm-season and cool-season grasses (choose one mix)"]
[null,"Yes","          Big bluestem (2 lbs), Indiangrass (1 lb), Little bluestem (1 lb), switchgrass (1 lb), sideoats grama (1 lb), and Canada wildrye (2 lbs)    EWD, WD, MWD   ",null,null,null,null,null,null,8,null,{"$f":"ROUNDUP((J77*K77),0)","v":0}]
[null,"Yes","          Big bluestem (3 lbs), eastern gamagrass (2 lbs), switchgrass (1 lb), deertongue (1 lb), and Virginia wildrye (3 lbs)    MWD, SPD ",null,null,null,null,null,null,10,null,{"$f":"ROUNDUP((J78*K78),0)","v":0}]
[null,"Yes","          Riverbank wildrye (5 lbs), Virginia wildrye (5 lbs), and switchgrass (1 lb)    WD, MWD, SPD, PD ",null,null,null,null,null,null,11,null,0]
[null,"Yes","          Canada wildrye (4 lbs) and switchgrass (3 lbs)    EWD, WD, MWD, SPD",null,null,null,null,null,null,7,null,0]
[null,"Yes",null,null,"OR"]
[null,"Yes","Native cool-season grasses  (choose one mix) "]
[null,"Yes","          Canada wildrye (3 lbs), Virginia wildrye (3 lbs), Riverbank wildrye (2 lbs), and Bottlebrush (2 lbs)           WD, MWD, SPD   ",null,null,null,null,null,null,10,null,{"$f":"ROUNDUP((J83*K83),0)","v":0}]
[null,"Yes","          Canada wildrye (4 lbs), Virginia wildrye (4 lbs), and Riverbank wildrye (2 lbs)    EWD, WD, MWD   ",null,null,null,null,null,null,10,null,{"$f":"ROUNDUP((J84*K84),0)","v":0}]
[null,"Yes","         Riverbank wildrye (4 lbs), Virginia wildrye (4 lbs), and Canada wildrye (2 lbs)    WD, MWD, SPD  ",null,null,null,null,null,null,10,null,0]
[null,"Yes"]
[null,"Yes","* Abbreviations represent the following soil drainage categories:  EWD = Excessively Well Drained; WD = Well Drained; MWD = Moderately Well Drained; SPD = Somewhat Poorly Drained; PD = Poorly Drained"]
[]
[]
[null,"Yes","Planting Method for New CP23 buffer acres"]
[null,"Yes","Select a seeding method"]
[null,"Yes",{"$f":"IF(C91=data!D122,data!E122,IF(C91=data!D123,data!E123,IF(C91=data!D124,data!E124)))","v":false}]
[null,"Yes","Establishment of New CP23 buffer acres"]
[null,null,"Type of grass used in buffer(s):",null,null,null,null,"Choose a grass type"]
[null,"Yes",{"$f":"IF(H94=data!A128,data!A123, IF(H94=data!A129,data!A124))","v":false}]
[null,"Yes","After the establishment period ends, mowing and spraying must follow the more restrictive timing and guidance given in Operation and Maintenance, below.  Therefore, NRCS recommends using the available mowing and/or spraying to its full advantage in the establishment years, to promote the most vigorous plant cover possible in the CP23 buffer.    "]
[null,null,"SITE-                   SPECIFIC NOTES","Enter text here"]
[]
[null,null,"Operation and Maintenance:   "]
[null,null,"To be compliant with the CRP/CREP contract, the dimensions and structural integrity of any embankment, berm, ditch plug and/or emergency spillway must be maintained.  Any appurtenances such as water control structures will be properly maintained and fully functional.  The project must be functioning as a wetland, including meeting wetland hydrology criteria."]
[null,null,"To control unwanted vegetation and to keep the existing conservation cover in compliance with the CRP/CREP contract, perform maintenance (by spot mowing or herbicide treatment) on specific, limited locations where weeds occur.  To avoid permanent damage to CP23 buffer vegetation, do not mow WSGs below 8 inches or CSGs below 6 inches.  Treatment with appropriate herbicides should always follow label directions for rate, amount, and timing of herbicide application.  "]
[null,null,"Spot mowing and herbicide treatment can only occur on acres with weed pressure, and cannot exceed 1/3 (33%) of any field in a given year.  Both spot mowing and herbicide treatment must occur between August 1 and August 31.  If mowing more than 1/3 of a field or spot mowing or herbicide treatment needed at other times of the year—for example, thistle control in May or early June—is needed, it must be requested from and pre-approved by the FSA County Committee.  "]
[null,null,"Control noxious weeds (see list below) on all CP23 acres over the entire length of the CRP/CREP contract.  Mowing alone may not be sufficient to control noxious or woody vegetation; a follow-up herbicide treatment may be necessary.  Any CP23 cover destroyed must be re-established."]
[null,null,"animated oat",null,null,null,null,"giant hogweed",null,null,null,"musk/nodding thistle"]
[null,null,"broomrape",null,null,null,null,"goatsrue",null,null,null,"Palmer amaranth"]
[null,null,"bull thistle",null,null,null,null,"hydrilla",null,null,null,"poison hemlock"]
[null,null,"Canada thistle",null,null,null,null,"johnsongrass",null,null,null,"purple loosestrife"]
[null,null,"common waterhemp",null,null,null,null,"kudzu",null,null,null,"shattercane"]
[null,null,"dodder",null,null,null,null,"mile-a-minute",null,null,null,"tall waterhemp"]
[null,null,"Eur. wand loosestrife",null,null,null,null,"multiflora rose",null,null,null,"wavyleaf basketgrass"]
[]
[null,null,"Mid-Contract Management (MCM):   "]
[null,null,"Implement the MCM practices indicated in Table 2 below, to prolong, improve, or diversify the benefits of the cover in the CP23 buffer.  Contact NRCS for a site visit and field evaluation before conducting MCM, to verify that the contracted MCM activity applies to the condition of the site."]
[]
[null,null,"By signing this document, the participant agrees to implement the CP23 conservation practice following the technical recommendations provided by NRCS and approved by FSA.  Any changes to the CP23 practice must receive NRCS and FSA approval prior to implementation."]
[]
[]
[]
[null,null,"Table 1: CP23 Implementation and Schedule"]
[null,null,"Select number of fields",null,null,null,null,null,null,null,"     (items in grey are for USDA reporting only)"]
[null,null,null,"Field","Acres Planned",null,"Year Planned",null,"Acres Applied","Date Applied","Certified by",null,"Comments"]
[null,null,10,null,null,null,null,null,null,null,"NRCS","Part."]
[null,null,null,1]
[{"$f":"IF($C$122<2,\"No\",\"Yes\")","v":"Yes"},null,null,2]
[{"$f":"IF($C$122<3,\"No\",\"Yes\")","v":"Yes"},null,null,3]
[{"$f":"IF($C$122<4,\"No\",\"Yes\")","v":"Yes"},null,null,4]
[{"$f":"IF($C$122<5,\"No\",\"Yes\")","v":"Yes"},null,null,5]
[{"$f":"IF($C$122<6,\"No\",\"Yes\")","v":"Yes"},null,null,6]
[{"$f":"IF($C$122<7,\"No\",\"Yes\")","v":"Yes"},null,null,7]
[{"$f":"IF($C$122<8,\"No\",\"Yes\")","v":"Yes"},null,null,8]
[{"$f":"IF($C$122<9,\"No\",\"Yes\")","v":"Yes"},null,null,9]
[{"$f":"IF($C$122<10,\"No\",\"Yes\")","v":"Yes"},null,null,10]
[]
[null,null,"Certification Statement:"]
[null,null,"I certify that implementation of this conservation practice is complete, meets criteria for the stated purpose(s), and meets the NRCS conservation practice standard and specifications."]
[]
[null,null,"Certified By:"]
[]
[]
[]
[]
[null,null,"Table 2: Mid-Contract Management Activity and Schedule"]
[null,null,"Select number of fields",null,null,null,null,null,null,null,"     (items in grey are for USDA reporting only)"]
[null,null,null,"Field","Mid-Contract Management",null,null,null,null,"Acres Planned","Year Planned","Acres Applied","Year Applied","Certified By:"]
[null,null,10,null,null,null,null,null,null,null,null,null,null,"NRCS / TSP","Participant"]
[null,null,null,1,"Select a MCM"]
[{"$f":"IF($C$145<2,\"No\",\"Yes\")","v":"Yes"},null,null,2,"Select a MCM"]
[{"$f":"IF($C$145<3,\"No\",\"Yes\")","v":"Yes"},null,null,3,"Select a MCM"]
[{"$f":"IF($C$145<4,\"No\",\"Yes\")","v":"Yes"},null,null,4,"Select a MCM"]
[{"$f":"IF($C$145<5,\"No\",\"Yes\")","v":"Yes"},null,null,5,"Select a MCM"]
[{"$f":"IF($C$145<6,\"No\",\"Yes\")","v":"Yes"},null,null,6,"Select a MCM"]
[{"$f":"IF($C$145<7,\"No\",\"Yes\")","v":"Yes"},null,null,7,"Select a MCM"]
[{"$f":"IF($C$145<8,\"No\",\"Yes\")","v":"Yes"},null,null,8,"Select a MCM"]
[{"$f":"IF($C$145<9,\"No\",\"Yes\")","v":"Yes"},null,null,9,"Select a MCM"]
[{"$f":"IF($C$145<10,\"No\",\"Yes\")","v":"Yes"},null,null,10,"Select a MCM"]
[]
[null,null,"Certification Statement:"]
[null,null,"I certify that implementation of this conservation practice is complete, meets criteria for the stated purpose(s), and meets the NRCS conservation practice standard and specifications."]
[]
[null,null,"Certified By:"]

{"sheet":"Re-enrolled CP23","index":3,"n_rows":66,"n_cols":15,"rows_kept":66,"cut":false,"hidden":false,"merged":[[35,2,35,6],[35,7,35,10],[35,11,35,14],[33,2,33,6],[33,7,33,10],[32,7,32,10],[32,11,32,14],[33,11,33,14],[34,2,34,6],[34,7,34,10],[34,11,34,14],[4,2,4,3],[4,4,4,8],[4,11,4,13],[2,2,2,3],[2,4,2,8],[2,11,2,13],[3,2,3,3],[3,4,3,8],[36,2,36,6],[36,7,36,10],[36,11,36,14],[31,2,31,6],[7,2,7,14],[10,2,10,14],[12,2,12,14],[22,3,22,14],[16,2,16,14],[18,2,18,14],[19,3,19,14],[20,3,20,14],[21,3,21,14],[31,7,31,10],[31,11,31,14],[32,2,32,6],[39,2,39,14],[41,2,41,14],[46,2,47,2],[47,3,48,3],[47,4,48,7],[47,9,48,9],[47,10,48,10],[47,11,48,11],[47,12,48,12],[47,13,47,14],[30,7,30,10],[30,11,30,14],[23,19,24,19],[23,20,24,20],[24,2,24,14],[26,2,26,14],[23,2,23,14],[27,2,27,14],[30,2,30,6],[28,2,28,14],[29,2,29,14],[62,2,62,14],[53,4,53,8],[54,4,54,8],[55,4,55,8],[56,4,56,8],[57,4,57,8],[58,4,58,8],[49,4,49,8],[50,4,50,8],[51,4,51,8],[61,2,61,10],[52,4,52,8]]}
[]
[]
[null,null,"Participant:",null,null,null,null,null,null,null,"FSA Contract:  "]
[null,null,"Location:",null,null,null,null,null,null,null,"County:  "]
[null,null,"Farm Number:",null,null,null,null,null,null,null,"Tract Number:  "]
[]
[null,null,"Definition:"]
[null,null,"Restoration of a wetland to a condition which meets all three USDA wetland criteria.  The restored wetland is then managed as wildlife habitat for the length of the CRP/CREP contract."]
[]
[null,null,"Purpose:  "]
[null,null,"This practice maintains existing wetlands (not ponds) on sites where previous wetlands were lost, then manages those restored wetlands for long-term wildlife habitat.  "]
[null,null,"Description:"]
[null,null,"Restored wetlands provide crucial habitats for a variety of wildlife.  Resident species, like amphibians and mammals, often rely on the consistent food and cover they provide.  Migratory species, like waterfowl and insects, often use them as corridors or \"stop-over\" sites for migration.  These areas should not be confused with deep-water ponds, because they offer very different benefits: compared to deep-water ponds, wetlands allow the growth of perennial vegetation--even in standing water (see photos above)--which in turn provides excellent food and cover for amphibians, insects, birds, and mammals throughout the year.  As a result, wetlands are among the most productive wildlife habitats available, especially when surrounded by perennial vegetation acting as \"buffers\" or filters around the water bodies.   "]
[]
[]
[null,null,"Practice Guidance for Re-Enrolled CP23/CP23A Acres:  "]
[null,null,"Maintain the existing restored wetlands and adjacent buffers in the fields shown in Table 1 and on the Conservation Plan Map, to provide ongoing wildlife habitat for the length of the new CRP/CREP contract."]
[null,null,"Grass Management for Re-Enrolled CP23 Acres"]
[null,null,"The current CP23 cover may benefit from actions to re-invigorate the herbaceous cover in the buffer areas, and prolong that cover throughout the new CRP/CREP contract.  Implement all activities checked below.  More than one management activity may be needed, or none may be needed.  Discuss cost-sharing or reimbursement availability with FSA prior to implementation of the actions. "]
[null,null,null,"Conduct Prescribed Mowing on CP23 acres, dispersing mowing residues evenly across mowed areas.  Avoid wind rows, clumping, or other accumulated residues that may smother the desired cover or prevent seed-to-soil contact. "]
[null,null,null,"Conduct Prescribed Mowing on CP23 acres, removing mowing residues from the field by raking and baling, then destroying or donating residues.  Coordinate with FSA staff, who must verify the disposal of baled residues.  (Fee charged.) "]
[null,null,null,"No management action needed.  No cost-sharing is associated with this option.  "]
[null,null,"SITE-                   SPECIFIC NOTES","Enter text here"]
[]
[]
[null,null,"Operation and Maintenance:   "]
[null,null,"To be compliant with the CRP/CREP contract, the dimensions and structural integrity of any embankment, berm, ditch plug and/or emergency spillway must be maintained.  Any appurtenances such as water control structures will be properly maintained and fully functional.  The project must be functioning as a wetland, including meeting wetland hydrology criteria."]
[null,null,"To control unwanted vegetation and to keep the existing conservation cover in compliance with the CRP/CREP contract, perform maintenance (by spot mowing or herbicide treatment) on specific, limited locations where weeds occur.  To avoid permanent damage to CP23 buffer vegetation, do not mow WSGs below 8 inches or CSGs below 6 inches.  Treatment with appropriate herbicides should always follow label directions for rate, amount, and timing of herbicide application.  "]
[null,null,"Spot mowing and herbicide treatment can only occur on acres with weed pressure, and cannot exceed 1/3 (33%) of any field in a given year.  Both spot mowing and herbicide treatment must occur between August 1 and August 31.  If mowing more than 1/3 of a field or spot mowing or herbicide treatment needed at other times of the year—for example, thistle control in May or early June—is needed, it must be requested from and pre-approved by the FSA County Committee.  "]
[null,null,"Control noxious weeds (see list below)on all CP23 acres over the entire length of the CRP/CREP contract.  Mowing alone may not be sufficient to control noxious or woody vegetation; a follow-up herbicide treatment may be necessary.  Any CP23 cover destroyed must be re-established."]
[null,null,"animated oat",null,null,null,null,"giant hogweed",null,null,null,"musk/nodding thistle"]
[null,null,"broomrape",null,null,null,null,"goatsrue",null,null,null,"Palmer amaranth"]
[null,null,"bull thistle",null,null,null,null,"hydrilla",null,null,null,"poison hemlock"]
[null,null,"Canada thistle",null,null,null,null,"johnsongrass",null,null,null,"purple loosestrife"]
[null,null,"common waterhemp",null,null,null,null,"kudzu",null,null,null,"shattercane"]
[null,null,"dodder",null,null,null,null,"mile-a-minute",null,null,null,"tall waterhemp"]
[null,null,"Eur. wand loosestrife",null,null,null,null,"multiflora rose",null,null,null,"wavyleaf basketgrass"]
[]
[null,null,"Mid-Contract Management (MCM):   "]
[null,null,"Implement the MCM practices indicated in Table 1 below, to prolong, improve, or diversify the benefits of the CP23 cover.  Contact NRCS for a site visit and field evaluation before conducting MCM, to verify that the contracted MCM activity applies to the condition of the site."]
[]
[null,null,"By signing this document, the participant agrees to maintain and continue the existing CP23 conservation practice following the technical recommendations provided by NRCS and approved by FSA.    Any changes to the CP23 practice must receive NRCS and FSA approval prior to implementation."]
[]
[]
[]
[null,null,"Table 1: Mid-Contract Management Activity and Schedule"]
[null,null,"Select number of fields",null,null,null,null,null,null,null,"     (items in grey are for USDA reporting only)"]
[null,null,null,"Field","Mid-Contract Management",null,null,null,null,"Acres Planned","Year Planned","Acres Applied","Year Applied","Certified By:"]
[null,null,10,null,null,null,null,null,null,null,null,null,null,"NRCS / TSP","Participant"]
[null,null,null,1,"Select a MCM"]
[{"$f":"IF($C$49<2,\"No\",\"Yes\")","v":"Yes"},null,null,2,"Select a MCM"]
[{"$f":"IF($C$49<3,\"No\",\"Yes\")","v":"Yes"},null,null,3,"Select a MCM"]
[{"$f":"IF($C$49<4,\"No\",\"Yes\")","v":"Yes"},null,null,4,"Select a MCM"]
[{"$f":"IF($C$49<5,\"No\",\"Yes\")","v":"Yes"},null,null,5,"Select a MCM"]
[{"$f":"IF($C$49<6,\"No\",\"Yes\")","v":"Yes"},null,null,6,"Select a MCM"]
[{"$f":"IF($C$49<7,\"No\",\"Yes\")","v":"Yes"},null,null,7,"Select a MCM"]
[{"$f":"IF($C$49<8,\"No\",\"Yes\")","v":"Yes"},null,null,8,"Select a MCM"]
[{"$f":"IF($C$49<9,\"No\",\"Yes\")","v":"Yes"},null,null,9,"Select a MCM"]
[{"$f":"IF($C$49<10,\"No\",\"Yes\")","v":"Yes"},null,null,10,"Select a MCM"]
[]
[]
[null,null,"Certification Statement:"]
[null,null,"I certify that implementation of this conservation practice is complete, meets criteria for the stated purpose(s), and meets the NRCS conservation practice standard and specifications."]
[]
[]
[null,null,"Certified By:"]